fUST/lending_fUST_20260523
["ID","MTS","AMOUNT","RATE_DAILY","PERIOD"]
[422856714,1779531033000,-661.76,8.219e-05,2]
[422856718,1779531033000,-595.07,8.219e-05,2]
[422856715,1779531033000,-500.0,8.219e-05,2]
[422856716,1779531033000,-500.0,8.219e-05,2]
[422856720,1779531033000,-500.0,8.219e-05,2]
[422856719,1779531033000,-500.0,8.219e-05,2]
[422856721,1779531033000,-500.0,8.219e-05,2]
[422856722,1779531033000,-1721.63,8.219e-05,2]
[422856724,1779531033000,-1237.02,8.219e-05,2]
[422856726,1779531033000,-500.0,8.219e-05,2]
[422856723,1779531033000,-500.0,8.219e-05,2]
[422856727,1779531033000,-500.0,8.219e-05,2]
[422856730,1779531033000,-500.0,8.219e-05,2]
[422856748,1779531033000,-500.0,8.219e-05,2]
[422856775,1779531033000,-233.01525509,8.219e-05,7]
[422856754,1779531033000,-320.12175719,8.219e-05,7]
[422856779,1779531033000,-364.34688569,8.219e-05,7]
[422856781,1779531033000,-728.69377139,8.219e-05,7]
[422856782,1779531033000,-279.52008542,8.219e-05,7]
[422856786,1779531033000,-152.10086244,8.219e-05,7]
[422856784,1779531033000,-167.99451178,8.219e-05,7]
[422856783,1779531033000,-154.06446559,8.219e-05,7]
[422856787,1779531033000,-304.20172487,8.219e-05,7]
[422856788,1779531033000,-274.11749574,8.219e-05,7]
[422856789,1779531033000,-182.18509157,8.219e-05,7]
[422856778,1779531033000,-182.17344285,8.219e-05,7]
[422856792,1779531033000,-182.12551174,8.219e-05,7]
[422856791,1779531033000,-500.0,8.219e-05,2]
[422856794,1779531033000,-314.68280623,8.219e-05,7]
[422856795,1779531033000,-279.01368836,8.219e-05,7]
[422856793,1779531033000,-157.34140311,8.219e-05,7]
[422856799,1779531033000,-582.3551774,8.219e-05,7]
[422856796,1779531033000,-558.02737673,8.219e-05,7]
[422856797,1779531033000,-194.11839247,8.219e-05,7]
[422856800,1779531033000,-158.45241139,8.219e-05,7]
[422856753,1779531033000,-160.06087859,8.219e-05,7]
[422856790,1779531033000,-608.40344975,8.219e-05,7]
[422856780,1779531033000,-546.52032854,8.219e-05,7]
[422856785,1779531033000,-159.12318158,8.219e-05,7]
[422856773,1779531033000,-402.03090423,8.219e-05,7]
[422856755,1779531033000,-480.18263578,8.219e-05,7]
[422856756,1779531033000,-640.24351437,8.219e-05,7]
[422856757,1779531033000,-207.20809859,8.219e-05,7]
[422856758,1779531033000,-414.41619719,8.219e-05,7]
[422856759,1779531033000,-621.62429578,8.219e-05,7]
[422856777,1779531033000,-421.91664867,8.219e-05,2]
[422856760,1779531033000,-828.83239438,8.219e-05,7]
[422856762,1779531033000,-1199.65215779,8.219e-05,7]
[422856763,1779531033000,-1219.74145581,8.219e-05,7]
[422856767,1779531033000,-332.09220197,8.219e-05,7]
[422856764,1779531033000,-579.73678087,8.219e-05,7]
[422856761,1779531033000,-599.82607889,8.219e-05,7]
[422856765,1779531033000,-2399.30431557,8.219e-05,7]
[422856768,1779531033000,-192.82089957,8.219e-05,7]
[422856769,1779531033000,-385.64179914,8.219e-05,7]
[422856771,1779531033000,-771.28359829,8.219e-05,7]
[422856774,1779531033000,-245.89027206,8.219e-05,7]
[422856770,1779531033000,-578.46269872,8.219e-05,7]
[422856772,1779531033000,-201.01545212,8.219e-05,7]
[422856798,1779531033000,-388.23678493,8.219e-05,7]
[422856766,1779531033000,-166.04610099,8.219e-05,7]
[422856776,1779531033000,-236.43875553,8.219e-05,7]
[422856828,1779531038000,-188.30346351,8.219e-05,7]
[422856821,1779531038000,-506.63821813,8.202e-05,2]
[422856820,1779531038000,-506.63821813,8.202e-05,2]
[422856818,1779531038000,-506.63821813,8.202e-05,2]
[422856827,1779531038000,-160.43512974,8.219e-05,7]
[422856812,1779531038000,-506.63821813,8.202e-05,2]
[422856815,1779531038000,-506.63821813,8.202e-05,2]
[422856814,1779531038000,-506.63821813,8.202e-05,2]
[422856811,1779531038000,-5000.0,5.184e-05,2]
[422856813,1779531038000,-506.63821813,8.202e-05,2]
[422856825,1779531038000,-506.63821813,8.202e-05,2]
[422856816,1779531038000,-506.63821813,8.202e-05,2]
[422856826,1779531038000,-283.74899381,8.219e-05,2]
[422856817,1779531038000,-506.63821813,8.202e-05,2]
[422856824,1779531038000,-506.63821813,8.202e-05,2]
[422856823,1779531038000,-506.63821813,8.202e-05,2]
[422856838,1779531038000,-251.53487169,8.219e-05,7]
[422856840,1779531038000,-396.07657076,8.219e-05,7]
[422856837,1779531038000,-328.93662443,8.219e-05,7]
[422856833,1779531038000,-654.58510661,8.219e-05,7]
[422856835,1779531038000,-559.04017085,8.219e-05,7]
[422856839,1779531038000,-396.00067027,8.219e-05,7]
[422856836,1779531038000,-164.46831222,8.219e-05,7]
[422856831,1779531038000,-327.29255331,8.219e-05,7]
[422856832,1779531038000,-490.93882996,8.219e-05,7]
[422856829,1779531038000,-376.60692701,8.219e-05,7]
[422856830,1779531038000,-163.64627665,8.219e-05,7]
[422856834,1779531038000,-472.87751107,8.219e-05,7]
[422856822,1779531038000,-506.63821813,8.202e-05,2]
[422856880,1779531039000,-184.51439025,8.219e-05,7]
[422856879,1779531039000,-452.97962014,8.219e-05,7]
[422856877,1779531039000,-301.98641342,8.219e-05,7]
[422856875,1779531039000,-466.03051019,8.219e-05,7]
[422856878,1779531039000,-603.97282685,8.219e-05,7]
[422856874,1779531039000,-491.78054412,8.219e-05,7]
[422856870,1779531039000,-692.65766346,8.219e-05,7]
[422856872,1779531039000,-436.7101729,8.219e-05,7]
[422856873,1779531039000,-236.17516665,8.219e-05,7]
[422856882,1779531039000,-171.98327369,8.219e-05,7]
[422856876,1779531039000,-150.99320671,8.219e-05,7]
[422856884,1779531039000,-343.96654738,8.219e-05,7]
[422856891,1779531039000,-237.70659575,8.219e-05,7]
[422856886,1779531039000,-11.16023609,8.219e-05,7]
[422856889,1779531039000,-545.75181646,8.219e-05,7]
[422856892,1779531039000,-950.82638301,8.219e-05,7]
[422856887,1779531039000,-181.91727215,8.219e-05,7]
[422856890,1779531039000,-727.66908861,8.219e-05,7]
[422856871,1779531039000,-218.35508645,8.219e-05,7]
[422856895,1779531039000,-195.86237383,8.219e-05,7]
[422856888,1779531039000,-363.83454431,8.219e-05,7]
[422856893,1779531039000,-475.4131915,8.219e-05,7]
[422856894,1779531039000,-713.11978725,8.219e-05,7]
[422856896,1779531039000,-391.72474765,8.219e-05,7]
[422856906,1779531039000,-348.42021104,8.219e-05,7]
[422856907,1779531039000,-696.84042208,8.219e-05,7]
[422856883,1779531039000,-687.93309476,8.219e-05,7]
[422856881,1779531039000,-369.02878049,8.219e-05,7]
[422856857,1779531039000,-819.29632743,8.219e-05,7]
[422856863,1779531039000,-477.36954475,8.219e-05,7]
[422856842,1779531039000,-152.2132815,8.219e-05,7]
[422856841,1779531039000,-347.26474999,8.219e-05,7]
[422856843,1779531039000,-608.853126,8.219e-05,7]
[422856845,1779531039000,-456.6398445,8.219e-05,7]
[422856846,1779531039000,-181.03169609,8.219e-05,7]
[422856849,1779531039000,-543.09508827,8.219e-05,7]
[422856855,1779531039000,-409.64816372,8.219e-05,7]
[422856848,1779531039000,-724.12678437,8.219e-05,7]
[422856844,1779531039000,-304.426563,8.219e-05,7]
[422856847,1779531039000,-362.06339218,8.219e-05,7]
[422856850,1779531039000,-191.96572355,8.219e-05,7]
[422856851,1779531039000,-383.9314471,8.219e-05,7]
[422856869,1779531039000,-519.4932476,8.219e-05,7]
[422856852,1779531039000,-575.89717066,8.219e-05,7]
[422856853,1779531039000,-767.86289421,8.219e-05,7]
[422856856,1779531039000,-614.47224557,8.219e-05,7]
[422856858,1779531039000,-168.45940787,8.219e-05,7]
[422856859,1779531039000,-336.91881575,8.219e-05,7]
[422856867,1779531039000,-1584.0026811,8.219e-05,7]
[422856861,1779531039000,-673.8376315,8.219e-05,7]
[422856864,1779531039000,-636.49272633,8.219e-05,7]
[422856868,1779531039000,-346.32883173,8.219e-05,7]
[422856860,1779531039000,-505.37822362,8.219e-05,7]
[422856866,1779531039000,-1188.00201082,8.219e-05,7]
[422856865,1779531039000,-792.00134055,8.219e-05,7]
[422856862,1779531039000,-318.24636316,8.219e-05,7]
[422856854,1779531039000,-204.82408186,8.219e-05,7]
[422856900,1779531039000,-467.67861027,8.219e-05,7]
[422856885,1779531039000,-504.78958498,8.219e-05,7]
[422856899,1779531039000,-233.83930513,8.219e-05,7]
[422856932,1779531039000,-486.34327591,8.219e-05,7]
[422856934,1779531039000,-308.46048225,8.219e-05,7]
[422856936,1779531039000,-616.92096449,8.219e-05,7]
[422856935,1779531039000,-462.69072337,8.219e-05,7]
[422856946,1779531039000,-2820.1980681,8.219e-05,7]
[422856940,1779531039000,-340.28014048,8.219e-05,7]
[422856938,1779531039000,-873.42034579,8.219e-05,7]
[422856939,1779531039000,-170.14007024,8.219e-05,7]
[422856937,1779531039000,-655.06525934,8.219e-05,7]
[422856943,1779531039000,-165.8194933,8.219e-05,7]
[422856944,1779531039000,-497.45847991,8.219e-05,7]
[422856942,1779531039000,-680.56028095,8.219e-05,7]
[422856929,1779531039000,-270.40855245,8.219e-05,7]
[422856945,1779531039000,-331.6389866,8.219e-05,7]
[422856947,1779531039000,-940.0660227,8.219e-05,7]
[422856952,1779531039000,-600.0,8.382e-05,2]
[422856948,1779531039000,-1880.1320454,8.219e-05,7]
[422856951,1779531039000,-1056.94968278,8.219e-05,7]
[422856955,1779531039000,-7489.3157831,8.455e-05,2]
[422856954,1779531039000,-8923.20254964,8.41e-05,2]
[422856957,1779531039000,-489.14266514,8.471e-05,2]
[422856953,1779531039000,-2387.324256,8.4e-05,30]
[422856956,1779531039000,-1652.9986006,8.455e-05,2]
[422856949,1779531039000,-3760.26409081,8.219e-05,7]
[422856958,1779531039000,-702.63850935,8.471e-05,2]
[422856902,1779531039000,-48.87464449,8.219e-05,7]
[422856941,1779531039000,-510.42021072,8.219e-05,7]
[422856931,1779531039000,-162.1144253,8.219e-05,7]
[422856950,1779531039000,-264.23742069,8.219e-05,7]
[422856927,1779531039000,-158.81498523,8.219e-05,7]
[422856930,1779531039000,-324.22885061,8.219e-05,7]
[422856898,1779531039000,-783.44949531,8.219e-05,7]
[422856901,1779531039000,-886.48257605,8.219e-05,7]
[422856905,1779531039000,-174.21010552,8.219e-05,7]
[422856904,1779531039000,-431.50613744,8.219e-05,7]
[422856903,1779531039000,-701.5179154,8.219e-05,7]
[422856910,1779531039000,-341.76855977,8.219e-05,7]
[422856897,1779531039000,-587.58712148,8.219e-05,7]
[422856920,1779531039000,-503.06974338,8.219e-05,7]
[422856909,1779531039000,-170.88427989,8.219e-05,7]
[422856911,1779531039000,-512.65283966,8.219e-05,7]
[422856914,1779531039000,-490.29761533,8.219e-05,7]
[422856913,1779531039000,-163.43253844,8.219e-05,7]
[422856908,1779531039000,-522.63031656,8.219e-05,7]
[422856919,1779531039000,-653.73015377,8.219e-05,7]
[422856918,1779531039000,-451.78533229,8.219e-05,7]
[422856926,1779531039000,-792.71226208,8.219e-05,7]
[422856924,1779531039000,-658.8838102,8.219e-05,7]
[422856933,1779531039000,-154.23024112,8.219e-05,7]
[422856923,1779531039000,-878.51174694,8.219e-05,7]
[422856925,1779531039000,-528.47484139,8.219e-05,7]
[422856921,1779531039000,-754.60461507,8.219e-05,7]
[422856917,1779531039000,-301.19022152,8.219e-05,7]
[422856912,1779531039000,-683.53711955,8.219e-05,7]
[422856916,1779531039000,-326.86507689,8.219e-05,7]
[422856915,1779531039000,-150.59511076,8.219e-05,7]
[422856922,1779531039000,-1006.13948677,8.219e-05,7]
[422856928,1779531039000,-317.62997047,8.219e-05,7]
[422856971,1779531040000,-500.0,8.493e-05,2]
[422856966,1779531040000,-618.95862636,8.493e-05,2]
[422856976,1779531040000,-500.0,8.493e-05,2]
[422856970,1779531040000,-648.25568975,8.493e-05,2]
[422856969,1779531040000,-500.0,8.493e-05,2]
[422856967,1779531040000,-500.0,8.493e-05,2]
[422856960,1779531040000,-152.0,8.477e-05,7]
[422856962,1779531040000,-151.0,8.493e-05,2]
[422856965,1779531040000,-215.96929526,8.493e-05,2]
[422856963,1779531040000,-151.0,8.493e-05,2]
[422856961,1779531040000,-1256.7922,8.493e-05,2]
[422856968,1779531040000,-500.0,8.493e-05,2]
[422856959,1779531040000,-1251.97558057,8.471e-05,2]
[422856972,1779531040000,-500.0,8.493e-05,2]
[422856964,1779531040000,-151.0,8.493e-05,2]
[422856973,1779531040000,-500.0,8.493e-05,2]
[422856987,1779531040000,-500.0,8.493e-05,2]
[422856980,1779531040000,-500.0,8.493e-05,2]
[422856997,1779531040000,-661.76,8.493e-05,2]
[422856999,1779531040000,-115.38117704,8.493e-05,2]
[422856978,1779531040000,-500.0,8.493e-05,2]
[422856989,1779531040000,-1165.86822249,8.493e-05,2]
[422856995,1779531040000,-500.0,8.493e-05,2]
[422856988,1779531040000,-500.0,8.493e-05,2]
[422856992,1779531040000,-500.0,8.493e-05,2]
[422856991,1779531040000,-589.35177751,8.493e-05,2]
[422856986,1779531040000,-609.59,8.493e-05,2]
[422856985,1779531040000,-500.0,8.493e-05,2]
[422856984,1779531040000,-500.0,8.493e-05,2]
[422856983,1779531040000,-500.0,8.493e-05,2]
[422856981,1779531040000,-500.0,8.493e-05,2]
[422856982,1779531040000,-986.36,8.493e-05,2]
[422856993,1779531040000,-500.0,8.493e-05,2]
[422857011,1779531041000,-495.840245,8.219e-05,2]
[422857014,1779531041000,-646.10068089,8.493e-05,2]
[422857012,1779531041000,-408.329755,8.219e-05,2]
[422857013,1779531041000,-374.89658097,8.493e-05,2]
[422857015,1779531041000,-413.08287747,8.493e-05,2]
[422857017,1779531041000,-268.60549405,8.493e-05,2]
[422857016,1779531041000,-86.91712253,8.493e-05,2]
[422857018,1779531042000,4180.464716,5.111e-05,2]
[422857035,1779531044000,-406.17896979,8.219e-05,2]
[422857037,1779531044000,-326.46450595,8.493e-05,2]
[422857034,1779531044000,-819.535284,5.111e-05,2]
[422857038,1779531044000,-500.0,8.493e-05,2]
[422857036,1779531044000,-93.82103021,8.219e-05,2]
[422857039,1779531044000,-12.54296333,8.493e-05,2]
[422857053,1779531046000,-500.0,8.493e-05,2]
[422857057,1779531046000,-500.0,8.493e-05,2]
[422857056,1779531046000,-500.0,8.493e-05,2]
[422857055,1779531046000,-1340.04,8.493e-05,2]
[422857058,1779531046000,-992.8,8.493e-05,2]
[422857054,1779531046000,-1237.02,8.493e-05,2]
[422857051,1779531046000,-500.0,8.493e-05,2]
[422857052,1779531046000,-1721.63,8.493e-05,2]
[422857050,1779531046000,-487.45703667,8.493e-05,2]
[422857066,1779531047000,-500.0,8.493e-05,2]
[422857065,1779531047000,-556.50227878,8.493e-05,2]
[422857063,1779531047000,-7985.71444079,8.493e-05,2]
[422857062,1779531047000,-131.23555921,8.493e-05,2]
[422857060,1779531047000,-500.0,8.493e-05,2]
[422857061,1779531047000,-712.68,8.493e-05,2]
[422857059,1779531047000,-500.0,8.493e-05,2]
[422857068,1779531047000,-669.89021889,8.493e-05,2]
[422857064,1779531047000,-500.0,8.493e-05,2]
[422857067,1779531047000,-25.27978111,8.493e-05,2]
[422857072,1779531047000,-500.0,8.493e-05,2]
[422857070,1779531047000,-1659.13,8.493e-05,2]
[422857071,1779531047000,-589.89362273,8.493e-05,2]
[422857073,1779531047000,-489.24354254,8.493e-05,2]
[422857077,1779531047000,-500.0,8.493e-05,2]
[422857079,1779531047000,-500.78437098,8.493e-05,2]
[422857074,1779531047000,-500.0,8.493e-05,2]
[422857075,1779531047000,-500.0,8.493e-05,2]
[422857076,1779531047000,-500.0,8.493e-05,2]
[422857078,1779531047000,-500.0,8.493e-05,2]
[422857069,1779531047000,-500.0,8.493e-05,2]
[422857082,1779531233000,200.0,4.9e-05,2]
[422857083,1779531238000,203.63513091,4.9e-05,2]
[422857147,1779532238000,-723.3519814,7.047e-05,2]
[422857145,1779532238000,-2849.94311707,6.977e-05,2]
[422857146,1779532238000,-2150.05688293,6.977e-05,2]
[422857179,1779532247000,-3518.50785676,6.977e-05,2]
[422857180,1779532247000,-1481.49214324,6.977e-05,2]
[422857181,1779532247000,-2113.48785676,7.047e-05,2]
[422857239,1779533432000,-520.48663763,6.178e-05,2]
[422857238,1779533432000,-586.94081868,6.178e-05,2]
[422857236,1779533432000,-78.54746069,6.178e-05,2]
[422857237,1779533432000,-1828.60152261,6.178e-05,2]
[422857235,1779533432000,-2803.50802436,6.116e-05,2]
[422857233,1779533432000,-2196.49197564,6.116e-05,2]
[422857286,1779533439000,-175.96400373,8.188e-05,2]
[422857289,1779533439000,-743.87039631,8.19e-05,2]
[422857287,1779533439000,-743.87039631,8.19e-05,2]
[422857298,1779533439000,-743.87039631,8.19e-05,2]
[422857295,1779533439000,-743.87039631,8.19e-05,2]
[422857296,1779533439000,-743.87039631,8.19e-05,2]
[422857297,1779533439000,-743.87039631,8.19e-05,2]
[422857282,1779533439000,-287.0,7.608e-05,2]
[422857280,1779533439000,-1414.57321729,7.455e-05,2]
[422857283,1779533439000,-503.52032771,8.041e-05,2]
[422857279,1779533439000,-456.513297,7.382e-05,2]
[422857288,1779533439000,-743.87039631,8.19e-05,2]
[422857303,1779533439000,-772.48079617,8.19e-05,2]
[422857292,1779533439000,-743.87039631,8.19e-05,2]
[422857291,1779533439000,-743.87039631,8.19e-05,2]
[422857293,1779533439000,-743.87039631,8.19e-05,2]
[422857294,1779533439000,-743.87039631,8.19e-05,2]
[422857300,1779533439000,-743.87039631,8.19e-05,2]
[422857311,1779533439000,-772.48079617,8.19e-05,2]
[422857299,1779533439000,-743.87039631,8.19e-05,2]
[422857310,1779533439000,-772.48079617,8.19e-05,2]
[422857305,1779533439000,-772.48079617,8.19e-05,2]
[422857306,1779533439000,-772.48079617,8.19e-05,2]
[422857312,1779533439000,-902.83693052,8.19e-05,2]
[422857301,1779533439000,-743.87039631,8.19e-05,2]
[422857277,1779533439000,-300.0,7.187e-05,2]
[422857290,1779533439000,-743.87039631,8.19e-05,2]
[422857281,1779533439000,-2525.87931783,7.6e-05,2]
[422857256,1779533439000,-526.71458155,6.399e-05,2]
[422857273,1779533439000,-300.0,7.187e-05,2]
[422857252,1779533439000,-1985.42356039,6.178e-05,2]
[422857253,1779533439000,-300.0,6.288e-05,2]
[422857254,1779533439000,-623.16355349,6.29e-05,2]
[422857255,1779533439000,-1195.9157856,6.39e-05,2]
[422857257,1779533439000,-1234.18210945,6.49e-05,2]
[422857258,1779533439000,-1324.37766333,6.841e-05,2]
[422857259,1779533439000,-432.31028956,6.9e-05,2]
[422857260,1779533439000,-1727.51191708,6.9e-05,2]
[422857261,1779533439000,-420.0,6.917e-05,2]
[422857262,1779533439000,-213.53716542,6.918e-05,2]
[422857272,1779533439000,-300.0,7.187e-05,2]
[422857263,1779533439000,-853.294513,6.918e-05,2]
[422857264,1779533439000,-300.0,7.187e-05,2]
[422857265,1779533439000,-300.0,7.187e-05,2]
[422857266,1779533439000,-300.0,7.187e-05,2]
[422857270,1779533439000,-300.0,7.187e-05,2]
[422857269,1779533439000,-300.0,7.187e-05,2]
[422857267,1779533439000,-300.0,7.187e-05,2]
[422857271,1779533439000,-300.0,7.187e-05,2]
[422857268,1779533439000,-300.0,7.187e-05,2]
[422857274,1779533439000,-300.0,7.187e-05,2]
[422857276,1779533439000,-300.0,7.187e-05,2]
[422857275,1779533439000,-300.0,7.187e-05,2]
[422857284,1779533439000,-1504.76877124,8.069e-05,2]
[422857285,1779533439000,-50000.0,8.187e-05,2]
[422857278,1779533439000,-300.0,7.187e-05,2]
[422857302,1779533439000,-743.87039631,8.19e-05,2]
[422857350,1779533439000,-226.090691,8.219e-05,2]
[422857307,1779533439000,-772.48079617,8.19e-05,2]
[422857343,1779533439000,-226.090691,8.219e-05,2]
[422857342,1779533439000,-226.090691,8.219e-05,2]
[422857345,1779533439000,-226.090691,8.219e-05,2]
[422857348,1779533439000,-226.090691,8.219e-05,2]
[422857346,1779533439000,-226.090691,8.219e-05,2]
[422857344,1779533439000,-226.090691,8.219e-05,2]
[422857341,1779533439000,-500.0,8.219e-05,2]
[422857352,1779533439000,-500.0,8.219e-05,2]
[422857347,1779533439000,-226.090691,8.219e-05,2]
[422857349,1779533439000,-226.090691,8.219e-05,2]
[422857351,1779533439000,-500.0,8.219e-05,2]
[422857354,1779533439000,-500.0,8.219e-05,2]
[422857365,1779533439000,-500.0,8.219e-05,2]
[422857353,1779533439000,-558.79,8.219e-05,2]
[422857356,1779533439000,-1630.14,8.219e-05,2]
[422857357,1779533439000,-211.08749409,8.219e-05,2]
[422857355,1779533439000,-606.61,8.219e-05,2]
[422857358,1779533439000,-500.0,8.219e-05,2]
[422857359,1779533439000,-500.0,8.219e-05,2]
[422857361,1779533439000,-500.0,8.219e-05,2]
[422857362,1779533439000,-500.0,8.219e-05,2]
[422857360,1779533439000,-500.0,8.219e-05,2]
[422857363,1779533439000,-500.0,8.219e-05,2]
[422857366,1779533439000,-1627.82,8.219e-05,2]
[422857309,1779533439000,-772.48079617,8.19e-05,2]
[422857340,1779533439000,-226.090691,8.219e-05,2]
[422857329,1779533439000,-500.0,8.219e-05,2]
[422857364,1779533439000,-500.0,8.219e-05,2]
[422857331,1779533439000,-500.0,8.219e-05,2]
[422857308,1779533439000,-772.48079617,8.19e-05,2]
[422857328,1779533439000,-334.33493022,8.219e-05,2]
[422857304,1779533439000,-772.48079617,8.19e-05,2]
[422857313,1779533439000,-902.83693052,8.19e-05,2]
[422857317,1779533439000,-1256.7922,8.219e-05,2]
[422857315,1779533439000,-162.380719,8.214e-05,2]
[422857316,1779533439000,-537.6845,8.214e-05,2]
[422857321,1779533439000,-500.0,8.219e-05,2]
[422857320,1779533439000,-500.0,8.219e-05,2]
[422857319,1779533439000,-500.0,8.219e-05,2]
[422857314,1779533439000,-151.0,8.214e-05,2]
[422857322,1779533439000,-500.0,8.219e-05,2]
[422857323,1779533439000,-500.0,8.219e-05,2]
[422857318,1779533439000,-500.0,8.219e-05,2]
[422857324,1779533439000,-151.0,8.219e-05,2]
[422857330,1779533439000,-500.0,8.219e-05,2]
[422857332,1779533439000,-500.0,8.219e-05,2]
[422857327,1779533439000,-500.0,8.219e-05,2]
[422857336,1779533439000,-226.090691,8.219e-05,2]
[422857339,1779533439000,-167.804673,8.219e-05,2]
[422857338,1779533439000,-226.090691,8.219e-05,2]
[422857337,1779533439000,-226.090691,8.219e-05,2]
[422857333,1779533439000,-226.090691,8.219e-05,2]
[422857334,1779533439000,-226.090691,8.219e-05,2]
[422857335,1779533439000,-226.090691,8.219e-05,2]
[422857325,1779533439000,-151.0,8.219e-05,2]
[422857326,1779533439000,-151.0,8.219e-05,2]
[422857415,1779533440000,-704.58309344,8.219e-05,7]
[422857405,1779533440000,-171.33356952,8.219e-05,7]
[422857407,1779533440000,-342.66713903,8.219e-05,7]
[422857408,1779533440000,-512.46702994,8.219e-05,7]
[422857409,1779533440000,-514.00070855,8.219e-05,7]
[422857417,1779533440000,-545.48758885,8.219e-05,7]
[422857401,1779533440000,-386.89775941,8.219e-05,7]
[422857406,1779533440000,-341.64468663,8.219e-05,7]
[422857402,1779533440000,-162.03160017,8.219e-05,7]
[422857399,1779533440000,-196.64818376,8.219e-05,7]
[422857400,1779533440000,-193.4488797,8.219e-05,7]
[422857414,1779533440000,-528.43732008,8.219e-05,7]
[422857416,1779533440000,-272.74379442,8.219e-05,7]
[422857411,1779533440000,-685.33427806,8.219e-05,7]
[422857428,1779533440000,-208.08793931,8.219e-05,7]
[422857413,1779533440000,-352.29154672,8.219e-05,7]
[422857418,1779533440000,-203.92454637,8.219e-05,7]
[422857429,1779533440000,-327.6005545,8.219e-05,7]
[422857420,1779533440000,-611.77363912,8.219e-05,7]
[422857421,1779533440000,-815.6981855,8.219e-05,7]
[422857423,1779533440000,-156.46184365,8.219e-05,7]
[422857419,1779533440000,-407.84909275,8.219e-05,7]
[422857430,1779533440000,-655.201109,8.219e-05,7]
[422857424,1779533440000,-303.62240475,8.219e-05,7]
[422857422,1779533440000,-151.81120237,8.219e-05,7]
[422857427,1779533440000,-625.8473746,8.219e-05,7]
[422857426,1779533440000,-469.38553095,8.219e-05,7]
[422857425,1779533440000,-312.9236873,8.219e-05,7]
[422857398,1779533440000,-688.68681601,8.219e-05,7]
[422857410,1779533440000,-683.28937326,8.219e-05,7]
[422857396,1779533440000,-344.343408,8.219e-05,7]
[422857371,1779533440000,-931.49,8.219e-05,2]
[422857397,1779533440000,-516.51511201,8.219e-05,7]
[422857442,1779533440000,-618.70889553,8.219e-05,7]
[422857369,1779533440000,-187.02310705,8.219e-05,2]
[422857367,1779533440000,-1332.53,8.219e-05,2]
[422857373,1779533440000,-1133.94,8.219e-05,2]
[422857368,1779533440000,-500.0,8.219e-05,2]
[422857374,1779533440000,-500.0,8.219e-05,2]
[422857375,1779533440000,-500.0,8.219e-05,2]
[422857370,1779533440000,-500.0,8.219e-05,2]
[422857377,1779533440000,-500.0,8.219e-05,2]
[422857376,1779533440000,-500.0,8.219e-05,2]
[422857372,1779533440000,-500.0,8.219e-05,2]
[422857378,1779533440000,-7578.79,8.219e-05,2]
[422857388,1779533440000,-500.0,8.219e-05,2]
[422857387,1779533440000,-500.0,8.219e-05,2]
[422857404,1779533440000,-170.82234331,8.219e-05,7]
[422857380,1779533440000,-500.0,8.219e-05,2]
[422857389,1779533440000,-500.0,8.219e-05,2]
[422857390,1779533440000,-1245.66,8.219e-05,2]
[422857391,1779533440000,-151.0,8.219e-05,2]
[422857379,1779533440000,-500.0,8.219e-05,2]
[422857382,1779533440000,-637.24,8.219e-05,2]
[422857381,1779533440000,-653.29,8.219e-05,2]
[422857385,1779533440000,-500.0,8.219e-05,2]
[422857383,1779533440000,-1599.04,8.219e-05,2]
[422857384,1779533440000,-500.0,8.219e-05,2]
[422857392,1779533440000,-888.23,8.219e-05,2]
[422857393,1779533440000,-173.89419895,8.219e-05,7]
[422857395,1779533440000,-172.171704,8.219e-05,7]
[422857403,1779533440000,-324.06320033,8.219e-05,7]
[422857394,1779533440000,-206.16204957,8.219e-05,7]
[422857386,1779533440000,-500.0,8.219e-05,2]
[422857432,1779533440000,-383.97816659,8.219e-05,7]
[422857412,1779533440000,-176.14577336,8.219e-05,7]
[422857443,1779533440000,-200.79348102,8.219e-05,7]
[422857463,1779533440000,-824.64819828,8.219e-05,7]
[422857467,1779533440000,-509.59809173,8.219e-05,7]
[422857468,1779533440000,-679.4641223,8.219e-05,7]
[422857466,1779533440000,-339.73206115,8.219e-05,7]
[422857470,1779533440000,-437.19282333,8.219e-05,7]
[422857476,1779533440000,-180.63920788,8.219e-05,7]
[422857475,1779533440000,-376.60692701,8.219e-05,7]
[422857483,1779533440000,-3175.52810931,8.219e-05,7]
[422857482,1779533440000,-2381.64608198,8.219e-05,7]
[422857477,1779533440000,-361.27841576,8.219e-05,7]
[422857484,1779533440000,-347.78839791,8.219e-05,7]
[422857478,1779533440000,-541.91762364,8.219e-05,7]
[422857486,1779533440000,-393.29636752,8.219e-05,7]
[422857485,1779533440000,-521.68259686,8.219e-05,7]
[422857462,1779533440000,-618.48614871,8.219e-05,7]
[422857481,1779533440000,-1587.76405466,8.219e-05,7]
[422857480,1779533440000,-793.88202733,8.219e-05,7]
[422857487,1779533440000,-695.57679581,8.219e-05,7]